Cogmind - Beta 14 @@@ ROGUE MODE // 2025.03.01 @ 08:05:48 Player: osman sinnoks Result: Destroyed by S-10 Pest with Light Assault Rifle Performance ------------- Evolutions (2) 1000 Regions Visited (8) 1600 Robots Destroyed (45) 225 Value Destroyed (1118) 1118 Prototype IDs (6) 120 Alien Tech Used (0) 0 Bonus (519) 519 TOTAL SCORE: 4582 Bonus ------- High Alert Combat Kills 12 Follower Combat Kills 7 Entered Garrisons 200 Aligned with FarCom 300 Cogmind --------- Core Integrity 0/550 Matter 213/300 Energy 99/100 System Corruption 4% Temperature Cool (0) Movement Core (50) Location -8/Garrison Parts ------- > --- POWER (2) -------- (None) > --- PROPULSION (2) --- (None) > --- UTILITY (3) ------ (None) > --- WEAPON (4) ------- Improved Datajack > --- INVENTORY (5) ---- Flight Unit Experimental Sensor Array YOLO Cannon Peak State ------------ > --- POWER ------------ Light Ion Engine > --- PROPULSION ------- Titanium Leg Titanium Leg > --- UTILITY ---------- (None) > --- WEAPON ----------- Particle Gun Particle Gun YOLO Cannon > --- INVENTORY -------- Flight Unit Experimental Sensor Array [Rating: 32] Favorites ----------- Power Ion Engine Engine Ion Engine Propulsion Aluminum Leg Leg Aluminum Leg Hover Unit Hover Unit Flight Unit Flight Unit Utility Hardened Light Armor Plating Device Experimental Sensor Array Storage Superbattery Processor Targeting Computer Protection Hardened Light Armor Plating Weapon Assault Rifle Energy Gun Particle Gun Energy Cannon YOLO Cannon Ballistic Gun Assault Rifle Launcher Rocket Launcher Special Melee Weapon Improved Datajack Build | -11 -10 -10 -9 -9 -9 -8 -8 -8 ------- Run | Yrd Mat Min Mat Min Exi Min Mat Gar Slots Evolved 4 | . . . 2 . . . 2 . Power 1 | . . . . . . . 1 . Propulsion . | . . . . . . . . . Utility 1 | . . . 1 . . . . . Weapon 2 | . . . 1 . . . 1 . Parts Attached 54 | 5 10 2 9 13 2 3 10 . Power 4 | 1 . . 2 1 . . . . Engine 4 | 1 . . 2 1 . . . . Core . | . . . . . . . . . Reactor . | . . . . . . . . . Propulsion 18 | 2 5 . 2 4 . 2 3 . Treads . | . . . . . . . . . Leg 9 | 2 2 . . . . 2 3 . Wheel . | . . . . . . . . . Hover 3 | . 3 . . . . . . . Flight 6 | . . . 2 4 . . . . Utility 7 | . 3 . 2 . 1 . 1 . Device 1 | . . . . . . . 1 . Storage 1 | . . . . . 1 . . . Processor 1 | . 1 . . . . . . . Hackware . | . . . . . . . . . Protection 4 | . 2 . 2 . . . . . Artifact . | . . . . . . . . . Weapon 25 | 2 2 2 3 8 1 1 6 . Energy Gun 7 | . . . 1 5 . . 1 . Energy Cannon 2 | . . . . . 1 1 . . Ballistic Gun 10 | 2 1 . 1 3 . . 3 . Ballistic Cannon . | . . . . . . . . . Launcher 4 | . 1 2 1 . . . . . Special Weapon . | . . . . . . . . . Impact Weapon . | . . . . . . . . . Slashing Weapon . | . . . . . . . . . Piercing Weapon . | . . . . . . . . . Special Melee Weapon 2 | . . . . . . . 2 . Unidentified Prototypes 4 | . . . 1 . 2 . 1 . Parts Lost 24 | . . . 7 9 . . 8 . Power 3 | . . . 1 1 . . 1 . Propulsion 9 | . . . 1 4 . . 4 . Utility 2 | . . . 1 1 . . . . Weapon 10 | . . . 4 3 . . 3 . Highest Loss Streak 5 | . . . 5 4 . . 5 . To Critical Strikes . | . . . . . . . . . Average Slot Usage (%) 60 | . 83 100 61 58 51 54 25 9 Engine 9 | . 14 14 9 10 11 11 2 . Leg 12 | . 16 28 10 . . 21 12 . Hover 2 | . 11 . . . . . . . Flight 5 | . . . 2 21 22 . . . Processor 2 | . 1 14 8 . . . . . Protection 6 | . 10 14 8 5 . . . . Energy Gun 3 | . . . . 5 11 11 4 . Energy Cannon 1 | . . . . . 1 10 . . Ballistic Gun 13 | . 26 14 13 15 6 . 5 . Launcher 2 | . 1 14 6 . . . . . Peak Build Rating 32 | 5 8 9 11 8 26 30 32 6 Average Rating 9 | 4 6 8 6 6 7 29 10 6 On Entrance 8 | . 5 8 9 4 7 8 30 6 Naked Turns 97 | . . . 6 . . . 91 . Heaviest Build 24 | 9 18 16 18 8 7 24 9 1 Greatest Support 34 | 20 20 20 20 8 8 34 34 3 Greatest Overweight (x) 1 | . . . 1 1 . . 1 . Average Overweight (x) . | . . . . . . . . . Largest Inventory Capacity 5 | 5 5 5 5 5 5 5 5 5 Average Capacity 5 | 5 5 5 5 5 5 5 5 5 Most Carried 5 | 4 4 4 5 5 5 5 5 4 Average Carried 3 | 1 2 3 2 4 3 3 4 4 Final Capacity 5 | 5 5 5 5 5 5 5 5 5 Final Carried 5 | 1 3 4 3 3 5 3 4 4 Class Distribution -------------------- 72% | Mutant 10% | Skirmisher 9% | Gunner 3% | Scavenger-Gunner 3% | Scavenger-Mutant Dominant Class ---------------- Mutant | -10/Materials Mutant | -10/Mines Gunner | -9/Materials Mutant | -9/Mines Scavenger-Mutant | -9/Exiles Skirmisher | -8/Mines Mutant | -8/Materials Mutant | -8/Garrison Resources | -11 -10 -10 -9 -9 -9 -8 -8 -8 ----------- Run | Yrd Mat Min Mat Min Exi Min Mat Gar Matter Collected 1172 | 286 215 83 147 302 . 55 84 . Remotely . | . . . . . . . . . Salvage Created 1238 | 121 361 83 228 283 . . 162 . Parts 80 | 9 23 1 15 21 . . 11 . Haulers Intercepted 2 | . 1 . 1 . . . . . Recyclers Shooed . | . . . . . . . . . Parts Field Recycled . | . . . . . . . . . Retrieved Matter . | . . . . . . . . . Parts Self-Destructed . | . . . . . . . . . Prevented . | . . . . . . . . . Kills | -11 -10 -10 -9 -9 -9 -8 -8 -8 ------- Run | Yrd Mat Min Mat Min Exi Min Mat Gar Combat Hostiles Destroyed 32 | . 6 3 4 15 . . 4 . Guns 25 | . 4 . 2 15 . . 4 . AOE 7 | . 2 3 2 . . . . . Classes Destroyed 13 | 1 4 1 3 1 . . 3 . Builder 2 | . 1 . 1 . . . . . Tunneler 6 | 5 1 . . . . . . . Hauler 2 | . 1 . 1 . . . . . Mechanic 1 | . . . 1 . . . . . Operator 1 | . 1 . . . . . . . Watcher 2 | . . . 2 . . . . . Swarmer 12 | . . . . 12 . . . . Grunt 14 | . 6 2 3 3 . . . . Brawler 1 | . . . 1 . . . . . Sentry 2 | . . . . . . . 2 . Specialist 1 | . . . . . . . 1 . Hunter 1 | . . . . . . . 1 . Assembled 1 | . . 1 . . . . . . Best Kill Streak 4 | 3 2 2 4 4 . . 1 . Combat Bots Only 4 | . 2 2 2 4 . . 1 . Max Kills in Single Turn 2 | 1 2 1 2 2 . . 1 . Gunslinging 1 | . . . . 1 . . . . Exploded 2 | . 2 1 1 . . . . . Melee . | . . . . . . . . . Uniques/NPCs Destroyed . | . . . . . . . . . Combat | -11 -10 -10 -9 -9 -9 -8 -8 -8 -------- Run | Yrd Mat Min Mat Min Exi Min Mat Gar Hostile Shots Fired 307 | . 22 5 82 81 . . 114 3 Missed 106 | . 5 4 35 25 . . 35 2 Damage Taken 2917 | . 220 11 819 557 . . 1301 9 Core 877 | . 20 . 166 141 . . 541 9 Absorbed by Shields . | . . . . . . . . . Core Remaining (%) 71 | 100 . 92 . . . 23 . . Volleys Fired 126 | 7 30 3 22 38 . . 26 . Largest 3 | 2 2 2 3 3 . . 2 . Hottest 130 | 40 50 53 73 105 . . 130 . Shots Fired 235 | 14 55 6 55 71 . . 34 . Gun 215 | 14 54 3 39 71 . . 34 . Cannon . | . . . . . . . . . Launcher 20 | . 1 3 16 . . . . . Special . | . . . . . . . . . Kinetic 184 | 14 54 3 39 51 . . 23 . Thermal 31 | . . . . 20 . . 11 . Explosive 20 | . 1 3 16 . . . . . Electromagnetic . | . . . . . . . . . Robot Hit Streak 14 | 3 8 6 8 7 . . 14 . Robot Miss Streak 7 | 1 2 . 2 7 . . 3 . Penetration Max 1 | . . . . . . . 1 . Secondary Targets 5 | . 2 . . 2 . . 1 . Max Gunslinging Chain 1 | . 1 . . 1 . . 1 . Shots Hit Robots 157 | 8 38 6 31 43 . . 31 . Core Hits 89 | 5 19 7 18 28 . . 12 . Critical Kills . | . . . . . . . . . Critical Parts Destroyed . | . . . . . . . . . Critical Strikes . | . . . . . . . . . Melee Attacks 3 | . . . . . . . 3 . Impact . | . . . . . . . . . Slashing . | . . . . . . . . . Piercing . | . . . . . . . . . Sneak Attacks . | . . . . . . . . . Combat Hostiles . | . . . . . . . . . Follow-up Attacks . | . . . . . . . . . Damage Inflicted 2683 | 100 524 176 911 444 . 6 522 . Guns 1839 | 100 463 34 286 444 . . 512 . Cannons . | . . . . . . . . . Explosions 826 | . 61 140 625 . . . . . Melee . | . . . . . . . . . Ramming 18 | . . 2 . . . 6 10 . Kinetic 1455 | 100 463 34 286 199 . . 373 . Thermal 384 | . . . . 245 . . 139 . Explosive 826 | . 61 140 625 . . . . . Electromagnetic . | . . . . . . . . . Impact . | . . . . . . . . . Slashing . | . . . . . . . . . Piercing . | . . . . . . . . . Highest Corruption 4 | . . . . . . . 4 4 Average Corruption 2 | . . . . . . . 2 4 Corruption Purged . | . . . . . . . . . Corruption Blocked . | . . . . . . . . . Effects 8 | . . . . . . . 8 . Matter Fused 2 | . . . . . . . 2 . Heat Flow Errors 1 | . . . . . . . 1 . Energy Discharges 2 | . . . . . . . 2 . Parts Rejected 1 | . . . . . . . 1 . Data Loss (minor) 1 | . . . . . . . 1 . Weapon Failures 1 | . . . . . . . 1 . Overload Shots . | . . . . . . . . . Overflow Damage 17 | . . . 17 . . . . . Projectiles . | . . . . . . . . . Explosions 17 | . . . 17 . . . . . Melee . | . . . . . . . . . Knockbacks . | . . . . . . . . . Impact . | . . . . . . . . . Kinetic . | . . . . . . . . . Secondary . | . . . . . . . . . Self-Inflicted Damage 136 | . . . 132 . . . 4 . Shots 2 | . . . 2 . . . . . Rammed 6 | . . . . . . . 6 . Targets Rammed 11 | . 1 1 . . . 3 6 . Kicked 5 | . 1 1 . . . 3 . . Crushed . | . . . . . . . . . Highest Temperature 355 | . 18 6 134 355 . . 345 . Average Temperature 81 | . 5 3 56 106 . . 161 . Received Heat Transfer 732 | . 105 . 216 114 . . 297 . Siege Activations . | . . . . . . . . . Robots Corrupted . | . . . . . . . . . Combat Hostiles . | . . . . . . . . . Parts Fried . | . . . . . . . . . Impact Corruptions . | . . . . . . . . . Robots Melted . | . . . . . . . . . Combat Hostiles . | . . . . . . . . . Parts Melted 6 | . . . . 3 . . 3 . Heat Transferred 791 | . . . . 458 . . 333 . Parts Sabotaged . | . . . . . . . . . Parts Stolen . | . . . . . . . . . Parts Stripped . | . . . . . . . . . Power Chain Reactions . | . . . . . . . . . Alert | -11 -10 -10 -9 -9 -9 -8 -8 -8 ------- Run | Yrd Mat Min Mat Min Exi Min Mat Gar Peak Influence 467 | 25 264 174 389 467 . . 279 94 Initial 151 | . 16 42 67 151 . . . 80 Average 160 | 12 99 164 280 316 . . 117 86 Maximum Alert Level 2 | . 1 . 1 2 . . 1 . Low Security (%) 62 | 100 81 100 27 5 . 100 71 100 Level 1 34 | . 18 . 72 82 . . 28 . Level 2 2 | . . . . 12 . . . . Level 3 . | . . . . . . . . . Level 4 . | . . . . . . . . . Level 5 . | . . . . . . . . . High Security . | . . . . . . . . . Max Security . | . . . . . . . . . Squads Dispatched 6 | . 1 . . . . . 5 . Investigation 1 | . 1 . . . . . . . Extermination . | . . . . . . . . . Reinforcement 5 | . . . . . . . 5 . Assault . | . . . . . . . . . Garrison . | . . . . . . . . . Intercept . | . . . . . . . . . Searches Triggered . | . . . . . . . . . Construction Impeded . | . . . . . . . . . Haulers Reinforced . | . . . . . . . . . Active Scanning Responses . | . . . . . . . . . Cargo Convoy Interrupts . | . . . . . . . . . Stealth | -11 -10 -10 -9 -9 -9 -8 -8 -8 --------- Run | Yrd Mat Min Mat Min Exi Min Mat Gar Distress Signals 3 | . 1 . 2 . . . . . Communications Jammed . | . . . . . . . . . Distress Signals . | . . . . . . . . . Times Spotted 80 | . 13 3 10 23 . . 23 8 Peak Tracking Total 7 | . 4 2 4 7 . . 7 5 Tactical Retreats 12 | . . . 1 4 . . 7 . Traps | -11 -10 -10 -9 -9 -9 -8 -8 -8 ------- Run | Yrd Mat Min Mat Min Exi Min Mat Gar Traps Triggered 2 | . 2 . . . . . . . Indirectly . | . . . . . . . . . Trap Hack Attempts . | . . . . . . . . . Triggered . | . . . . . . . . . Disarmed . | . . . . . . . . . Reprogrammed . | . . . . . . . . . Reused . | . . . . . . . . . Traps Extracted . | . . . . . . . . . Installed . | . . . . . . . . . Triggered . | . . . . . . . . . Machines | -11 -10 -10 -9 -9 -9 -8 -8 -8 ---------- Run | Yrd Mat Min Mat Min Exi Min Mat Gar Machines Disabled 11 | . 1 4 5 1 . . . . Max in Single Turn 4 | . 1 4 4 1 . . . . Machines Repaired . | . . . . . . . . . Machines Dismantled . | . . . . . . . . . Machines Sabotaged . | . . . . . . . . . Overloaded Fab Kills . | . . . . . . . . . Hacking | -11 -10 -10 -9 -9 -9 -8 -8 -8 --------- Run | Yrd Mat Min Mat Min Exi Min Mat Gar Machines Accessed 15 | . 8 . 3 . . . 3 1 Terminals 12 | . 6 . 3 . . . 2 1 Fabricators . | . . . . . . . . . Repair Stations . | . . . . . . . . . Recycling Units 2 | . 2 . . . . . . . Scanalyzers . | . . . . . . . . . Garrison Access 1 | . . . . . . . 1 . Total Hacks 36 | . 24 . 6 . . . 5 1 Successful 19 | . 13 . 2 . . . 3 1 Failed 17 | . 11 . 4 . . . 2 . Catastrophic . | . . . . . . . . . Database Lockouts . | . . . . . . . . . Manual 20 | . 10 . 5 . 1 . 4 . Terminals 29 | . 19 . 6 . . . 3 1 Fabricators . | . . . . . . . . . Repair Stations . | . . . . . . . . . Recycling Units 5 | . 5 . . . . . . . Scanalyzers . | . . . . . . . . . Garrison Access 2 | . . . . . . . 2 . Terminal Hacks 6 | . 4 . 1 . . . . 1 Prototype ID Bank 1 | . 1 . . . . . . . Emergency Access Points 1 | . . . . . . . . 1 Alert Level 3 | . 2 . 1 . . . . . Hauler Manifests 1 | . 1 . . . . . . . Fabricator Hacks . | . . . . . . . . . Repair Station Hacks . | . . . . . . . . . Recycling Unit Hacks 3 | . 3 . . . . . . . Process 1 | . 1 . . . . . . . Report Inventory 1 | . 1 . . . . . . . Retrieve Matter 1 | . 1 . . . . . . . Scanalyzer . | . . . . . . . . . Garrison Access Hacks 1 | . . . . . . . 1 . Unlock Access 1 | . . . . . . . 1 . Unauthorized Hacks 9 | . 6 . 1 . . . 2 . Terminals 9 | . 6 . 1 . . . 2 . Assimilate 1 | . 1 . . . . . . . Botnet 8 | . 5 . 1 . . . 2 . Fabricators . | . . . . . . . . . Repair Stations . | . . . . . . . . . Recycling Units . | . . . . . . . . . Scanalyzers . | . . . . . . . . . Garrison Access . | . . . . . . . . . Data Cores Recovered . | . . . . . . . . . Used . | . . . . . . . . . Hacking Detections 11 | . 7 . 3 . . . 1 . Full Trace Events 1 | . 1 . . . . . . . Feedback Events . | . . . . . . . . . Feedback Blocked . | . . . . . . . . . Robot Schematics Acquired . | . . . . . . . . . Robots Built . | . . . . . . . . . Authchips . | . . . . . . . . . Time . | . . . . . . . . . Total Robot Build Rating . | . . . . . . . . . Part Schematics Acquired . | . . . . . . . . . Parts Built . | . . . . . . . . . Authchips . | . . . . . . . . . Time . | . . . . . . . . . Total Part Build Rating . | . . . . . . . . . Parts Repaired . | . . . . . . . . . Time . | . . . . . . . . . Parts Recycled . | . . . . . . . . . Recycled Matter 106 | . 106 . . . . . . . Retrieved Matter 106 | . 106 . . . . . . . Retrieved Components . | . . . . . . . . . Parts Scanalyzed . | . . . . . . . . . Part Schematics Acquired . | . . . . . . . . . Parts Damaged . | . . . . . . . . . Bothacking | -11 -10 -10 -9 -9 -9 -8 -8 -8 ------------ Run | Yrd Mat Min Mat Min Exi Min Mat Gar Used RIF Installer . | . . . . . . . . . Robots Hacked 1 | . . . . . . . 1 . Non-combat 1 | . . . . . . . 1 . Combat . | . . . . . . . . . Robot Hacks Applied 1 | . . . . . . . 1 . parse_system 1 | . . . . . . . 1 . Relay Couplers Released . | . . . . . . . . . Fabnet Peak Effective % . | . . . . . . . . . Robots Rewired . | . . . . . . . . . Allies Hacked . | . . . . . . . . . Hacks Repelled . | . . . . . . . . . Allies | -11 -10 -10 -9 -9 -9 -8 -8 -8 -------- Run | Yrd Mat Min Mat Min Exi Min Mat Gar Total Allies 2 | . . . . 2 . . . . Largest Group 2 | . . . . 2 . . . . Highest-Rated Group 38 | . . . . 38 . . . . Highest-Rated Ally 31 | . . . . 31 . . . . Total Orders . | . . . . . . . . . Ally Attacks 6 | . . . . 6 . . . . Total Damage 83 | . . . . 83 . . . . Kills 2 | . . . . 2 . . . . Allies Corrupted . | . . . . . . . . . Allies Melted . | . . . . . . . . . Intel | -11 -10 -10 -9 -9 -9 -8 -8 -8 ------- Run | Yrd Mat Min Mat Min Exi Min Mat Gar Robot Analysis Total . | . . . . . . . . . Derelict Logs Recovered 2 | . . 1 . 1 . . . . Drone Launches . | . . . . . . . . . Drone Recoveries . | . . . . . . . . . Exploration | -11 -10 -10 -9 -9 -9 -8 -8 -8 ------------- Run | Yrd Mat Min Mat Min Exi Min Mat Gar Turns Passed 2917 | 139 573 315 304 606 88 298 536 58 Spaces Moved 3099 | 106 535 251 285 913 223 189 516 81 Core 567 | 28 . . 92 . . . 366 81 Treads . | . . . . . . . . . Legs 1004 | 78 241 251 97 . . 187 150 . Wheels . | . . . . . . . . . Hover 294 | . 294 . . . . . . . Flight 1234 | . . . 96 913 223 2 . . Fastest Speed 37 | 50 56 120 37 37 37 37 50 50 Average Speed 69 | 101 84 120 77 37 37 129 70 50 Slowest Speed 190 | 120 120 120 190 120 37 130 130 50 Overloaded Moves . | . . . . . . . . . Propulsion Burnouts . | . . . . . . . . . Robots Hopped 7 | . . . 1 6 . . . . Cave-ins Triggered . | . . . . . . . . . Exploration Rate (%) 51 | 4 80 75 34 100 60 44 48 14 Regions Visited 8 Branch Regions 4 Pre-discovered Areas . | . . . . . . . . . Known Exits Taken 1 | . . . . . . . 1 . Unknown Exits Taken 7 | 1 1 1 1 1 1 1 . . Scrap Searched 4 | . . 1 . 3 . . . . Spaces Dug . | . . . . . . . . . Terrain Destroyed 118 | . 7 24 87 . . . . . Melee . | . . . . . . . . . Projectile . | . . . . . . . . . AOE 118 | . 7 24 87 . . . . . Terrain Rammed . | . . . . . . . . . Walls Destroyed . | . . . . . . . . . Machines Disabled . | . . . . . . . . . Actions | -11 -10 -10 -9 -9 -9 -8 -8 -8 --------- Run | Yrd Mat Min Mat Min Exi Min Mat Gar Total 3639 | 123 597 257 324 1118 229 242 651 98 Wait 307 | . 13 . . 148 . 46 83 17 Move 3078 | 105 534 250 282 900 222 188 516 81 Hop 7 | . . . 1 6 . . . . Pick Up 32 | 6 6 1 5 10 2 . 2 . Fast Attach 11 | . . . 2 1 . 2 6 . Attach 32 | 5 3 . 7 11 2 1 3 . Detach 5 | . 1 . 1 1 1 . 1 . Swap 11 | . 7 2 . 1 . . 1 . Drop 16 | . 2 . 4 2 2 2 4 . Fire 126 | 7 30 3 22 38 . . 26 . Melee 3 | . . . . . . . 3 . Ram 6 | . . . . . . . 6 . Kick 5 | . 1 1 . . . 3 . . Crush . | . . . . . . . . . Escape Stasis . | . . . . . . . . . Rewire . | . . . . . . . . . Trap . | . . . . . . . . . Miscellaneous . | . . . . . . . . . Route ------- -11/Scrapyard -10/Materials (discovered 3 exits: *Mat x2 / [*Min]) -10/Mines -9/Materials (discovered 2 exits: *Mat / [*Min]) -9/Mines (discovered 3 exits: *Mat x2 / *Exi) -9/Exiles -8/Mines -8/Materials (discovered 2 exits: [*Sto] / Gar) -8/Garrison History --------- Turn | Location | Event 2 | -11/Scrapyard | Met Revision 17 5 | -11/Scrapyard | Discovered new exit (range 15) 140 | -11/Scrapyard | Entered Materials 294 | -10/Materials | Discovered new exit (range 4) 313 | -10/Materials | Build established: Mutant 444 | -10/Materials | Discovered new exit (range 10) 697 | -10/Materials | Discovered new exit (range 14) 713 | -10/Materials | Entered Mines 839 | -10/Mines | Received a Rocket Launcher from a helpful Derelict 861 | -10/Mines | Assembled infested the area 861 | -10/Mines | Learned Materials emergency access door positions 866 | -10/Mines | Assisted by a Guerilla fighting off Assembled 1016 | -10/Mines | Discovered new exit (range 9) 1028 | -10/Mines | Entered Materials 1028 | -9/Materials | Evolved 2 slots: Utility x1, Weapon x1 1266 | -9/Materials | Lost 5 parts (1u4w) 1308 | -9/Materials | Discovered new exit (range 10) 1326 | -9/Materials | Discovered new exit (range 14) 1332 | -9/Materials | Entered Mines 1362 | -9/Mines | Core integrity fell below 50% 1476 | -9/Mines | Learned Materials trap positions 1699 | -9/Mines | Discovered new exit (range 8) 1714 | -9/Mines | Found a damaged Exp. Sensor Array with a note attached 1715 | -9/Mines | Found Prototype Device 1738 | -9/Mines | Discovered new exit (range 7) 1926 | -9/Mines | Lost 4 parts (1p1n2w) 1936 | -9/Mines | Deemed a non-threat by the Exiles lab entrance 1936 | -9/Mines | Discovered new exit (range 5) 1938 | -9/Mines | Entered Exiles 1947 | -9/Exiles | Met 8R-AWN 1954 | -9/Exiles | Met EX-HEX 1965 | -9/Exiles | Met EX-BIN 1970 | -9/Exiles | Aligned with FarCom system 1970 | -9/Exiles | Given EX-Vault access code 1980 | -9/Exiles | Opened EX-Vault 1984 | -9/Exiles | Found Prototype Storage 1985 | -9/Exiles | Identified Superbattery 1988 | -9/Exiles | Found Prototype Energy Cannon 1989 | -9/Exiles | Identified YOLO Cannon 1999 | -9/Exiles | Warned to stay clear of 0b10 Research branches 2002 | -9/Exiles | Exiles lab attacked by MAIN.C 2023 | -9/Exiles | Discovered new exit (range 10) 2026 | -9/Exiles | Left Exiles lab with YOLO Cannon 2026 | -9/Exiles | Entered Mines 2315 | -8/Mines | Discovered new exit (range 6) 2323 | -8/Mines | Build established: Skirmisher 2324 | -8/Mines | Entered Materials 2324 | -8/Materials | Evolved 2 slots: Power x1, Weapon x1 2325 | -8/Materials | Loaded intel: 16 trap records 2326 | -8/Materials | Discovered new exit (range 14) 2388 | -8/Materials | Identified Exp. Sensor Array 2515 | -8/Materials | Core integrity fell below 50% 2517 | -8/Materials | Lost 5 parts (1p2n2w) 2637 | -8/Materials | Build established: Mutant 2787 | -8/Materials | Core integrity fell below 20% 2828 | -8/Materials | Lost 3 parts (2n1w) 2860 | -8/Materials | Identified exit to Garrison 2860 | -8/Materials | Entered Garrison 2884 | -8/Garrison | Triggered checkpoint 2918 | -8/Garrison | Triggered checkpoint 2918 | -8/Garrison | Destroyed by S-10 Pest with Light Assault Rifle Last Messages --------------- System corrupted: Energy discharge (-37). Slammed into W-25 Informer. Destabilizing: Core damaged (-16). Slammed into T-07 Excavator. Slammed into W-25 Informer. Destabilizing: System corrupted (+2). System corrupted: Heat flow error (+155). Connecting with Garrison Access... >>Unlock Access door unlocked. EXIT=UNLOCKED: GARRISON LOCATION=GARRISON GOAL=ESCAPE Receiving FarCom transmissions... Connecting with Garrison Terminal... >>Access(Emergency) Found 83 emergency access points. Map updated. Beams of light sweep through the air. An alarm sounds. Map ----- +----------------------------------------------------+ | ?????????????????????????????????????????????????? | | ??????????????+??????????????????????????????+???? | | ?????????????????????????????????????????????????? | | ????????####""""###??????????????????????????????? | | ##?????# #????????????????+?????????????? | | #?????# #####+## #??????????????????????????????? | | #??????????????# #??????????????????????????????? | | #??????????????# #????????????+???????+?????????? | | #??????????????# #??????????????????????????????? | | #??????????????# #??????????????????????????????? | | #??????+???????# #????????????????+?????????????? | | #??????????????# #??????????????????????????????? | | #??????????????# #??????????????????????????????? | | #######+######## #######????????????????????+???+ | | #????????????????????????? | | #????????????????????????? | | ########+### ######## #????????????????+???????? | | ???????????# #??????# #????????????????????????? | | ???????????# #??????# #????????????????????????? | | ???????????# #??????# #????????????????????????? | | ???????????# #??????# #????????????????????????? | | ???????????+ +??????+ #?###+#??????????????????+ | | ??????????## #??????# #?ssss#??????????????????+ | | ??????????#T #?????## ## ###+####???????????? | | ??????????## ####### ????????? | | ???????????# @ ????????? | | ???????????# ????????? | | ???????????###s###### ## ## ####??????????? | | ????????????????????# g#? #??? #?????????????? | | ??????????????s?????" bg ?????????????????? | | ??????????????????+s" ???????????????? | | ????????????????????" ?g+???????????? | | ???????????????????s" "g????????????? | | ????????????????????# ## ## #?????????????? | | ????????????????????# #? #? #??????+??????? | | ???????????????????? ?? ?? ?????????????? | | ??+????????????????? ?? ?? ????????????? | | ??+????????????????? ?? ??????+??????????? | | ?????????+??????????## ##??""##?????????????????? | | ?????????????????????? #???C??????Y?????????????? | | ???????????+??????????b???+?+?????+??????+???????? | | ?????????????????????????????????????????????????? | | ?????????????????????????????????????????????????? | | ??+?????????????????????+????????????????????????? | | ?????????????????????????????????????????????????? | | ?????????????????????????????????????+???????????? | | ?????????????????+?????????????+?????????????????? | | ?????????????????????????????????????????????????? | | ?????????????????????????????????????????????????? | | ???????????????????+?????????????????????????????? | +----------------------------------------------------+ Best States ------------- Heat Dissipation 31 Energy Generation 10 Energy Capacity 250 Matter Stores 300 Matter Capacity 300 Sight Range 16 Terrain Scan Density 10 Armor Coverage 300 Evasion (%) 62 Targeting Accuracy 5 Item Schematics ----------------- None Robot Schematics ------------------ None Fabricated ------------ Nothing Alien Tech Used ----------------- None Achievements -------------- None Challenges ------------ None Game ------ Seed PhaseGatlingCleaver Manual? 0 Play Time 00:38:17 Cumulative 22.8 hours Start 2025.02.28 @ 21:25:21 End 2025.03.01 @ 08:05:48 Sessions 3 Manual Loads 0 Difficulty Rogue Special Mode None Game No. 49 Rogue 49 Adventurer 0 Explorer 0 Win Type - Total 0 Types 0/0/0/0/0/0/0/0/0 Lore% 15 Gallery% 26 Achievement% 22 Wizard Run 0 Options --------- Layout 2 ASCII 0 Keyboard 0 Movement Mouse Keybinds 0 Fullscreen 1 Font 24/Smallcaps Map View 50x49 Zoom Use 0% Tactical HUD 0 Map Filters NONE Filters NONE Steam 1 RUN: 1eeaf1d9-5fd9-4a55-a1d8-6b49835fd74b